bitfinex/quotes_ETHUSD_20250525
["timestamp","ask_amount","ask_price","bid_price","bid_amount"]
[1748146477713,0.7615,2502.5,2501.8,2.1597902]
[1748146477914,0.7615,2502.5,2501.9,6.378]
[1748146479864,0.7615,2502.5,2501.8,2.1597902]
[1748146480035,0.7615,2502.5,2501.9,6.378]
[1748146481153,0.7615,2502.5,2501.8,2.1597902]
[1748146481359,0.7615,2502.5,2502.0,6.378]
[1748146482725,0.7615,2502.5,2501.8,2.1597902]
[1748146482925,0.7615,2502.5,2501.9,6.59397902]
[1748146485862,0.7615,2502.5,2501.8,2.1597902]
[1748146486061,0.7615,2502.5,2501.9,6.378]
[1748146486257,0.7615,2502.5,2501.8,2.1597902]
[1748146486432,0.7615,2502.5,2502.0,6.378]
[1748146486832,8.0,2502.4,2501.8,2.1597902]
[1748146487038,8.0,2502.4,2501.9,6.378]
[1748146487460,8.0,2502.4,2502.0,26.837]
[1748146488790,8.0,2502.4,2502.0,6.746]
[1748146488986,8.0,2502.4,2501.8,1.61906922]
[1748146489497,8.0,2502.4,2501.9,6.378]
[1748146490185,8.47301691,2502.4,2501.9,6.378]
[1748146490387,8.47301691,2502.4,2502.0,6.378]
[1748146492867,0.7645,2502.3,2501.6,1.4030902]
[1748146493070,0.7645,2502.3,2502.1,6.378]
[1748146493994,1.23751691,2502.3,2502.1,6.378]
[1748146494951,0.7645,2502.3,2502.1,6.378]
[1748146495658,0.47301691,2502.4,2502.1,6.378]
[1748146497096,8.0,2502.3,2502.1,6.378]
[1748146497471,8.0,2502.3,2502.2,26.839]
[1748146498263,8.0,2502.3,2502.2,6.378]
[1748146498458,8.0,2502.3,2501.8,1.4030902]
[1748146498797,8.0,2502.3,2502.2,6.378]
[1748146498997,8.0,2502.3,2501.8,1.62008922]
[1748146499157,8.0,2502.3,2502.2,6.378]
[1748146499896,8.37088633,2502.3,2502.2,6.378]
[1748146502403,8.37088633,2502.3,2501.7,0.7669]
[1748146502573,8.37088633,2502.3,2501.1,0.8268]
[1748146502574,0.8231,2502.1,2501.1,0.8268]
[1748146502761,0.8231,2501.9,2501.1,0.8268]
[1748146502963,0.04996863,2501.8,2501.2,6.378]
[1748146503199,1.3731,2501.7,2501.1,0.05]
[1748146503410,0.8287,2501.6,2501.3,6.378]
[1748146503896,9.30171691,2501.6,2501.3,6.378]
[1748146504197,1.30171691,2501.6,2501.3,6.378]
[1748146507306,0.8287,2501.6,2501.3,6.378]
[1748146507507,0.8287,2501.6,2501.4,26.841]
[1748146507668,0.8287,2501.6,2501.4,21.1]
[1748146508001,0.8287,2501.6,2501.4,6.746]
[1748146509521,1.57589499,2501.5,2501.1,0.05]
[1748146509803,1.57589499,2501.5,2501.2,6.38]
[1748146510007,0.55,2501.5,2501.3,6.38]
[1748146510572,0.91994482,2501.5,2501.3,6.38]
[1748146510912,1.39296173,2501.5,2501.3,6.38]
[1748146511283,1.39296173,2501.5,2501.1,0.05]
[1748146511484,1.39296173,2501.5,2501.2,6.38]
[1748146511685,1.39296173,2501.5,2501.1,0.05]
[1748146512009,1.39296173,2501.5,2501.3,6.38]
[1748146512585,1.3087,2501.2,2501.1,0.05]
[1748146512815,10.7117902,2501.2,2501.1,6.43]
[1748146513122,9.3087,2501.2,2501.1,6.43]
[1748146513517,8.0,2501.2,2501.1,7.2573]
[1748146516525,8.0,2501.2,2501.1,0.05]
[1748146516689,8.0,2501.2,2501.1,6.431]
[1748146517407,10.394,2501.2,2501.1,6.431]
[1748146517615,8.0,2501.2,2501.1,33.28]
[1748146518006,8.0,2501.2,2501.1,20.151]
[1748146518305,8.0,2501.2,2501.1,33.28]
[1748146518714,8.0,2501.2,2501.1,6.431]
[1748146520771,8.0,2501.2,2501.1,7.2438]
[1748146521417,8.0,2501.5,2501.1,7.2438]
[1748146521772,1.25441691,2501.7,2501.1,7.2438]
[1748146522038,0.47301691,2501.7,2501.1,6.431]
[1748146522191,0.47301691,2501.8,2501.2,0.8128]
[1748146522699,8.84262707,2502.1,2501.2,0.8128]
[1748146522876,0.84262707,2502.1,2501.2,0.8128]
[1748146523311,0.47301691,2502.1,2501.2,0.8128]
[1748146523625,8.0,2502.1,2501.2,0.8128]
[1748146524843,8.0,2502.1,2501.3,6.381]
[1748146525019,9.8805213,2502.1,2501.3,6.381]
[1748146527547,9.8805213,2502.1,2501.4,26.846]
[1748146527947,9.8805213,2502.1,2501.4,21.104]
[1748146528240,8.0,2502.1,2501.4,21.104]
[1748146528447,8.0,2502.1,2501.5,0.7975]
[1748146529345,8.0,2502.1,2501.6,6.38]
[1748146533118,0.47301691,2502.3,2501.7,0.7975]
[1748146533318,0.47301691,2502.2,2501.7,0.7975]
[1748146534419,0.84309075,2502.3,2501.7,0.7975]
[1748146534615,0.47301691,2502.3,2501.7,0.7975]
[1748146536838,1.39305818,2502.4,2501.7,0.7975]
[1748146537660,8.0,2502.3,2501.8,21.101]
[1748146537838,8.0,2502.3,2501.8,6.746]
[1748146538039,8.0,2502.3,2501.7,0.7975]
[1748146538359,8.0,2502.3,2501.7,1.4583927]
[1748146538581,8.0,2502.3,2501.7,0.8095]
[1748146538859,0.84305818,2502.4,2501.7,0.8095]
[1748146539038,0.47301691,2502.4,2501.7,0.8095]
[1748146539238,8.84305818,2502.5,2501.7,0.8095]
[1748146540173,0.47301691,2502.5,2501.7,0.8095]
[1748146540467,8.47301691,2502.6,2501.7,0.8095]
[1748146541073,0.84301477,2502.6,2501.7,0.8095]
[1748146541938,0.47301691,2502.6,2501.7,0.8095]
[1748146542560,1.22791691,2502.9,2501.7,0.8095]
[1748146542756,9.37847271,2502.8,2501.6,6.38]
[1748146542962,9.37847271,2502.8,2501.7,0.8095]
[1748146543628,8.0,2502.8,2501.8,6.379]
[1748146543774,8.0,2502.8,2501.9,0.8095]
[1748146544158,8.36996572,2502.8,2501.9,0.8095]
[1748146545154,0.84298263,2502.8,2501.9,0.8095]
[1748146546177,0.47301691,2502.8,2501.9,0.8095]
[1748146546477,9.59788263,2502.9,2501.9,0.8095]
[1748146546680,0.84298263,2502.9,2501.9,0.8095]
[1748146547594,8.84298263,2503.0,2502.1,0.8095]
[1748146550152,0.84298263,2503.0,2502.1,0.8095]
[1748146550681,0.47301691,2503.0,2502.1,0.8095]
[1748146551593,1.43661538,2503.3,2502.1,0.8095]
[1748146551594,0.47301691,2503.1,2502.1,0.8095]
[1748146552590,0.47301691,2503.3,2502.1,0.8095]
[1748146553991,1.27811691,2503.5,2502.1,0.8095]
[1748146554693,1.64817873,2503.5,2502.1,0.8095]
[1748146555711,1.27811691,2503.5,2502.1,0.8095]
[1748146557574,1.27811691,2503.5,2502.3,0.8255]
[1748146557768,1.27811691,2503.5,2502.4,7.2025]
[1748146558009,1.27811691,2503.5,2502.5,0.8255]
[1748146558674,0.8051,2503.5,2502.5,0.8255]
[1748146563499,8.84307873,2503.6,2502.5,0.8255]
[1748146564096,0.84307873,2503.6,2502.5,0.8255]
[1748146564326,0.84307873,2503.6,2502.6,0.52642495]
[1748146564524,0.37006182,2503.6,2502.7,0.8196]
[1748146564831,0.47301691,2503.8,2502.7,0.8196]
[1748146565208,0.47301691,2503.8,2502.7,0.3923772]
[1748146565410,0.47301691,2503.8,2502.8,0.8196]
[1748146565613,0.89307873,2503.9,2502.8,0.8196]
[1748146566953,0.52301691,2503.9,2502.8,0.8196]
[1748146567552,8.0,2503.8,2503.0,0.8196]
[1748146567719,8.0,2503.8,2503.2,0.8196]
[1748146567914,0.52301691,2503.9,2503.4,0.8196]
[1748146568698,0.05,2503.9,2503.7,0.55]
[1748146568899,0.05,2503.9,2503.5,6.376]
[1748146568900,0.05,2503.9,2503.6,0.7671]
[1748146570155,0.05,2503.9,2503.7,6.376]
[1748146570449,0.05,2503.9,2503.8,0.7671]
[1748146571957,0.05,2503.9,2503.8,0.7646458]
[1748146576254,0.05,2503.9,2503.8,0.55]
[1748146576427,0.05,2504.9,2503.8,8.55]
[1748146576616,0.05,2504.9,2504.0,0.7671]
[1748146577438,0.05,2504.9,2504.1,20.078]
[1748146577633,0.05,2504.9,2504.2,0.7671]
[1748146579721,0.05,2504.9,2504.3,6.374]
[1748146580162,0.05,2504.9,2504.4,0.7595]
[1748146581665,0.05,2504.9,2504.5,6.373]
[1748146581860,0.05,2504.9,2504.4,0.7595]
[1748146582163,0.05,2504.9,2504.6,0.7595]
[1748146587552,0.05,2504.9,2504.7,26.81]
[1748146588791,0.05,2504.9,2504.8,13.107]
[1748146589793,0.05,2504.9,2504.3,0.8123]
[1748146589995,0.05,2504.9,2504.8,6.372]
[1748146591481,0.05,2504.9,2504.7,0.8123]
[1748146591756,0.05,2504.9,2504.8,6.372]
[1748146591998,0.05,2504.9,2504.0,0.85]
[1748146592158,0.05,2504.9,2504.2,0.8123]
[1748146592585,0.05,2504.9,2504.4,0.8123]
[1748146597607,0.05,2504.9,2504.6,0.7617]
[1748146599565,0.05,2504.9,2504.7,6.371]
[1748146602901,0.05,2504.9,2504.3,0.7617]
[1748146603105,0.05,2504.9,2504.4,6.371]
[1748146604110,0.05,2504.9,2504.3,0.7617]
[1748146604306,0.7595,2504.8,2504.1,0.8166]
[1748146604510,0.7595,2504.8,2504.4,6.371]
[1748146606000,0.7595,2504.8,2504.5,6.371]
[1748146607487,0.7595,2504.8,2504.6,26.805]
[1748146607809,0.7595,2504.8,2504.7,6.371]
[1748146610310,0.7595,2504.8,2503.6,1.32270256]
[1748146610511,0.7595,2504.8,2503.7,7.1354]
[1748146610898,0.80940664,2504.8,2503.7,0.7644]
[1748146611245,0.8099,2504.6,2503.8,6.371]
[1748146612091,0.85981216,2504.6,2503.8,6.371]
[1748146612416,0.8099,2504.6,2503.8,6.371]
[1748146614322,0.8099,2504.6,2503.5,0.7644]
[1748146614525,0.8099,2504.6,2503.9,6.372]
[1748146614688,0.8118,2504.5,2503.9,6.372]
[1748146615528,0.8118,2504.5,2503.5,0.7644]
[1748146615738,0.8118,2504.5,2503.6,6.372]
[1748146616719,0.8118,2504.5,2503.5,0.7644]
[1748146616923,0.8118,2504.5,2503.7,6.372]
[1748146617598,0.8118,2504.5,2503.8,21.074]
[1748146617987,0.8118,2504.5,2503.9,0.7592]
[1748146619414,0.8118,2504.5,2504.0,6.372]
[1748146620488,0.8118,2504.5,2503.5,0.8024]
[1748146620686,0.84801161,2504.4,2503.4,0.40150404]
[1748146620910,0.7981,2504.4,2503.5,6.372]
[1748146621523,0.7981,2504.1,2503.0,0.47270256]
[1748146621732,0.7981,2504.1,2502.8,0.62956989]
[1748146621733,0.7981,2503.9,2503.1,6.372]
[1748146622037,0.7981,2503.7,2502.8,0.62956989]
[1748146622238,0.7981,2503.7,2503.2,6.372]
[1748146622536,0.7981,2503.5,2502.5,1.20501075]
[1748146622738,0.7981,2503.5,2503.3,6.372]
[1748146624009,0.7981,2503.5,2503.4,6.373]
[1748146626144,0.7981,2503.5,2502.6,1.40057714]
[1748146626339,0.7981,2503.2,2502.2,0.8024]
[1748146626642,0.7981,2503.2,2502.3,6.374]
[1748146627021,0.7981,2503.0,2502.1,0.05]
[1748146627313,0.7981,2502.9,2502.2,6.374]
[1748146627525,0.269817,2502.9,2502.3,21.077]
[1748146627722,0.7981,2502.8,2502.3,6.736]
[1748146627922,0.7981,2502.8,2502.3,8.13657714]
[1748146628128,0.7981,2502.8,2502.3,1.40057714]
[1748146630753,0.7981,2502.8,2502.4,6.375]
[1748146633634,0.7981,2502.8,2502.3,1.40057714]
[1748146633818,0.7981,2502.8,2502.4,6.375]
[1748146636561,0.7981,2502.8,2502.3,1.40057714]
[1748146636725,0.7981,2502.8,2502.5,6.376]
[1748146637456,0.7981,2502.8,2502.6,20.085]
[1748146637692,0.7981,2502.8,2502.6,26.824]
[1748146638778,0.7981,2502.8,2502.7,13.115]
[1748146641298,0.7981,2502.8,2502.7,6.376]
[1748146644050,0.7981,2502.8,2502.7,6.377]
[1748146644257,0.36832827,2503.4,2502.7,6.377]
[1748146644258,0.7533,2503.3,2502.7,6.377]
[1748146644849,0.7533,2503.2,2502.8,6.377]
[1748146645459,0.26279561,2503.3,2502.8,6.377]
[1748146645460,0.04994007,2503.1,2502.8,6.377]
[1748146645674,0.7533,2503.0,2502.8,6.377]
[1748146646883,0.7533,2503.0,2502.1,2.22247714]
[1748146647069,0.7533,2502.8,2502.2,6.377]
[1748146647273,0.7533,2502.8,2502.1,1.45057714]
[1748146647507,0.7533,2502.8,2502.3,6.377]
[1748146648194,0.7533,2502.8,2502.4,6.377]
[1748146648574,0.7533,2502.8,2502.5,6.377]
[1748146649083,0.7533,2502.8,2502.1,0.05]
[1748146649294,0.7524,2502.6,2502.2,6.377]
[1748146651167,0.7524,2502.8,2502.3,1.40057714]
[1748146653714,0.474079,2503.0,2502.7,1.40057714]
[1748146653881,0.474079,2503.0,2502.7,2.17407714]
[1748146654067,0.474079,2503.1,2502.8,0.21740771]
[1748146655209,0.474079,2503.1,2502.7,2.17407714]
[1748146655210,0.7524,2503.3,2502.7,1.40057714]
[1748146655365,0.7524,2503.3,2502.9,6.377]
[1748146655808,0.7524,2503.3,2502.3,1.40057714]
[1748146656009,0.7524,2503.1,2502.4,6.377]
[1748146656335,1.226479,2503.1,2502.4,6.377]
[1748146656510,0.36984989,2503.0,2502.4,6.377]
[1748146657406,1.226479,2503.1,2502.4,6.377]
[1748146657608,1.226479,2503.1,2502.5,26.851]
[1748146657783,0.474079,2503.0,2502.5,26.851]
[1748146658685,0.474079,2503.0,2502.5,14.349]
[1748146658882,0.474079,2503.0,2502.6,13.14]
[1748146659086,0.474079,2503.0,2502.6,6.377]
[1748146661025,0.7524,2502.9,2502.6,6.377]
[1748146661922,0.7524,2502.9,2502.2,2.17407714]
[1748146662222,0.7524,2502.9,2502.3,0.22240771]
[1748146662398,0.7524,2502.9,2502.4,6.377]
[1748146663707,1.226479,2502.9,2502.4,7.77757714]
[1748146664643,0.7524,2502.9,2502.4,7.77757714]
[1748146666686,0.474079,2503.0,2502.6,1.40057714]
[1748146667541,0.474079,2503.0,2502.7,26.852]
[1748146668357,1.226479,2503.1,2502.7,26.852]
[1748146668702,1.226479,2503.1,2502.7,21.113]
[1748146668956,1.226479,2503.1,2502.7,6.764]
[1748146670002,1.226479,2503.1,2502.6,1.40057714]
[1748146671381,0.474079,2503.2,2502.8,1.40057714]
[1748146671663,0.474079,2503.2,2502.8,2.19777714]
[1748146671805,0.474079,2503.2,2502.8,2.41755485]
[1748146672565,0.7609,2503.3,2502.8,2.41755485]
[1748146673142,0.7609,2503.3,2502.8,1.62035485]
[1748146677415,1.306079,2503.5,2503.1,1.40057714]
[1748146677716,1.306079,2503.5,2503.2,6.377]
[1748146678357,0.474079,2503.5,2503.4,0.7615]
[1748146678694,0.474079,2503.7,2503.4,0.7615]
[1748146678834,0.474079,2503.7,2503.6,1.40057714]
[1748146679583,2.46911728,2504.4,2503.6,2.16207714]
[1748146679746,2.46911728,2504.4,2503.9,1.40057714]
[1748146679945,2.46911728,2504.4,2504.0,6.376]
[1748146680764,2.46911728,2504.4,2504.1,1.40057714]
[1748146681073,1.99503828,2504.4,2504.1,1.40057714]
[1748146682263,1.99503828,2504.4,2504.3,1.40057714]
[1748146684010,0.8045,2504.9,2504.3,1.40057714]
[1748146685902,0.8045,2504.9,2504.4,0.8248]
[1748146686066,0.8045,2504.9,2504.5,0.22253771]
[1748146687588,0.8045,2504.9,2504.6,26.831]
[1748146687815,0.8045,2504.9,2504.6,21.094]
[1748146689516,0.05,2504.9,2504.7,6.373]
[1748146690090,0.05,2504.9,2504.7,7.77357714]
[1748146690297,0.05,2504.9,2504.8,0.8248]
[1748146694232,0.05,2504.9,2504.8,1.23196035]
[1748146694628,0.05,2504.9,2504.8,0.8248]
[1748146697501,0.05,2504.9,2504.8,27.6438]
[1748146698750,0.05,2504.9,2504.8,0.8248]
[1748146699038,0.05,2504.9,2504.8,1.6626]
[1748146699638,0.57689076,2505.4,2505.3,2.21317714]
[1748146700003,0.57689076,2505.4,2504.9,0.85]
[1748146700004,0.05,2505.9,2505.8,2.21317714]
[1748146700260,0.05,2505.9,2505.8,8.58417714]
[1748146703118,0.05,2505.9,2505.8,8.19427714]
[1748146706436,0.05,2505.9,2505.8,8.19327714]
[1748146707441,0.05,2505.9,2505.8,35.00127714]
[1748146708461,0.04757166,2505.9,2505.8,35.00027714]
[1748146708642,0.04757166,2505.9,2505.8,8.19227714]
[1748146709906,0.7765,2506.6,2505.8,8.19227714]
[1748146710107,0.7765,2506.6,2506.0,1.40057714]
[1748146711097,0.7765,2506.6,2506.2,1.40057714]
[1748146713205,0.7836,2506.8,2506.4,1.40057714]
[1748146713357,0.05,2506.9,2506.4,1.40057714]
[1748146714273,0.05,2506.9,2506.6,1.40057714]
[1748146714472,0.05,2506.9,2506.6,2.16537714]
[1748146715001,0.7836,2506.8,2506.7,6.368]
[1748146717474,0.7836,2506.8,2506.7,33.159]
[1748146718571,0.7836,2506.8,2506.7,13.1]
[1748146718771,0.05,2506.9,2506.7,13.1]
[1748146718971,0.05,2506.9,2506.8,6.367]
[1748146721605,0.05,2506.9,2506.8,7.1318]
[1748146721806,0.8336,2506.9,2506.2,2.16537714]
[1748146722124,0.8336,2506.9,2506.3,6.367]
[1748146724336,0.05,2506.9,2506.4,2.16537714]
[1748146724903,0.7836,2506.8,2506.4,1.40057714]
[1748146727437,0.7836,2506.8,2506.5,5.73]
[1748146727736,0.7836,2506.8,2506.5,26.788]
[1748146727915,0.05,2506.9,2506.5,26.788]
[1748146728446,0.59973637,2507.0,2506.4,1.40057714]
[1748146730246,0.63151538,2507.5,2506.5,0.8224]
[1748146730553,0.63151538,2507.5,2506.4,1.40057714]
[1748146730723,0.37104103,2507.4,2506.4,1.40057714]
[1748146731351,0.7917,2507.3,2506.4,1.40057714]
[1748146731856,0.37104103,2507.2,2506.4,1.40057714]
[1748146732359,1.40057714,2506.9,2506.1,0.40768902]
[1748146732512,0.84156507,2506.8,2506.5,6.367]
[1748146732711,0.7917,2506.8,2506.5,6.367]
[1748146733111,0.7917,2506.8,2505.9,0.47624666]
[1748146733357,0.7803,2506.7,2506.0,6.367]
[1748146733651,0.7803,2506.7,2506.1,6.367]
[1748146733828,0.37104509,2506.6,2506.1,6.367]
[1748146734028,0.7803,2506.5,2506.1,6.367]
[1748146735071,0.7803,2506.5,2505.8,1.40057714]
[1748146735072,0.7803,2506.5,2506.2,6.366]
[1748146735654,0.7803,2506.5,2506.3,6.366]
[1748146736661,0.7803,2506.5,2505.7,0.8224]
[1748146736855,0.7803,2506.5,2505.8,6.367]
[1748146737427,0.7803,2506.5,2505.9,26.788]
[1748146739188,0.7803,2506.5,2505.6,1.40057714]
[1748146739368,0.792,2506.4,2505.7,6.367]
[1748146739569,0.792,2506.2,2505.7,6.367]
[1748146741504,0.792,2506.2,2505.3,1.40057714]
[1748146741703,0.792,2506.2,2505.8,6.367]
[1748146743685,0.792,2506.2,2505.3,1.40057714]
[1748146743894,1.03817169,2506.2,2505.9,6.368]
[1748146744214,0.7678,2506.1,2505.9,6.368]
[1748146747598,0.7678,2506.1,2506.0,21.099]
[1748146747795,0.7678,2506.1,2506.0,27.467]
[1748146748619,0.7678,2506.1,2506.0,6.77]
[1748146748813,0.7621,2506.0,2505.1,0.8384]
[1748146748985,0.7621,2506.0,2505.3,8.0]
[1748146753520,0.7621,2505.8,2505.1,0.05]
[1748146754022,0.7621,2505.6,2505.2,6.369]
[1748146754983,0.7621,2505.6,2505.3,6.369]
[1748146755922,0.7621,2506.0,2505.3,7.76957714]
[1748146757529,0.7621,2506.0,2505.4,26.834]
[1748146758043,0.7621,2506.0,2505.4,21.102]
[1748146758938,0.7621,2506.0,2505.4,6.771]
[1748146759110,0.7621,2506.0,2505.5,6.369]
[1748146761510,0.7621,2506.0,2505.6,6.369]
[1748146762207,0.7621,2506.0,2505.1,1.45057714]
[1748146762410,0.7621,2506.0,2505.2,6.369]
[1748146762822,0.7621,2506.0,2505.3,1.40057714]
[1748146764754,1.1694694,2506.2,2505.7,1.40057714]
[1748146764959,0.7992,2506.2,2505.7,1.40057714]
[1748146765171,0.63151538,2506.4,2505.9,2.22937714]
[1748146765317,0.7992,2506.5,2506.1,1.40057714]
[1748146766455,0.7992,2506.5,2506.0,6.369]
[1748146767458,0.7992,2506.5,2506.1,12.502]
[1748146767651,0.7992,2506.5,2506.1,6.77]
[1748146767819,0.7992,2506.5,2506.0,6.369]
[1748146773372,0.7992,2506.5,2505.9,0.8288]
[1748146773559,0.7992,2506.5,2506.0,6.368]
[1748146777466,0.7992,2506.5,2506.1,6.739]
[1748146780613,0.7992,2506.5,2506.2,6.368]
[1748146780902,0.7992,2506.5,2505.8,2.18107714]
[1748146781076,1.40057714,2507.0,2505.4,1.37642495]
[1748146781077,0.7587,2506.3,2505.4,0.85]
[1748146781281,1.45044827,2506.4,2505.9,6.368]
[1748146781282,0.04987842,2506.2,2505.9,6.368]
[1748146781502,0.7587,2506.1,2505.9,6.368]
[1748146782364,0.7587,2506.1,2505.4,0.85]
[1748146782704,0.7587,2506.1,2505.3,1.40057714]
[1748146782705,0.7587,2506.1,2505.5,6.368]
[1748146783106,0.7587,2506.1,2505.6,6.368]
[1748146787175,0.7587,2506.1,2505.3,1.40057714]
[1748146787378,0.7587,2506.1,2505.4,6.368]
[1748146787585,0.7587,2506.1,2505.5,26.801]
[1748146787870,0.7587,2506.1,2505.6,6.368]
[1748146791021,0.7587,2506.1,2505.5,6.739]
[1748146791225,0.7508,2506.0,2505.6,6.369]
[1748146791526,0.7508,2505.7,2505.1,0.05]
[1748146791841,0.7508,2505.5,2505.2,6.369]
[1748146792922,2.394,2505.4,2505.2,6.369]
[1748146793224,0.7508,2505.5,2505.2,6.369]
[1748146795521,0.7508,2505.5,2505.3,6.369]
[1748146796995,0.7845,2506.0,2505.3,7.76957714]
[1748146797301,0.7845,2506.0,2505.3,8.29600209]
[1748146797522,0.7845,2506.0,2505.4,26.805]
[1748146798698,0.04988526,2505.9,2505.4,26.805]
[1748146798894,0.55,2506.2,2505.4,26.805]
[1748146799203,0.7566,2506.0,2505.4,26.805]
[1748146799523,0.7566,2506.0,2505.4,6.74]
[1748146801852,0.7566,2506.0,2505.3,6.369]
[1748146802039,0.7566,2506.0,2505.3,8.52467714]
[1748146802908,0.7566,2506.0,2505.4,6.37]
[1748146803128,0.21571771,2506.0,2505.4,6.37]
[1748146803332,0.7566,2505.9,2505.4,6.37]
[1748146804641,0.7566,2505.9,2505.4,7.1251]
[1748146805149,0.63151538,2506.4,2505.4,7.1251]
[1748146805150,0.7566,2506.3,2505.4,7.1251]
[1748146807529,0.7566,2506.3,2505.5,26.81]
[1748146808857,2.20947714,2506.1,2505.6,13.114]
[1748146809019,0.8089,2506.0,2505.6,13.114]
[1748146809858,0.8089,2506.0,2505.2,0.7576]
[1748146810044,0.8089,2506.0,2505.3,6.369]
[1748146814161,0.63151538,2506.1,2505.5,0.751]
[1748146814679,0.63151538,2506.1,2505.6,1.40057714]
[1748146815172,0.7791,2506.3,2505.6,1.40057714]
[1748146815371,0.63151538,2506.4,2506.0,1.40057714]
[1748146815586,0.63151538,2506.4,2506.1,6.37]
[1748146816376,0.7791,2506.8,2506.1,6.37]
[1748146816377,0.63151538,2506.7,2506.1,6.37]
[1748146816544,1.57257692,2506.7,2506.1,6.37]
[1748146816932,0.37055365,2506.6,2506.1,6.37]
[1748146817432,0.37055365,2506.6,2506.2,21.076]
[1748146818042,1.57257692,2506.7,2506.2,21.076]
[1748146818043,0.37055365,2506.5,2506.2,21.076]
[1748146818947,0.94106154,2506.7,2506.2,21.076]
[1748146819350,1.41061538,2506.8,2506.2,21.076]
[1748146819552,1.41061538,2506.8,2506.2,6.745]
[1748146819750,0.37028339,2506.7,2506.2,6.745]
[1748146820907,0.37028339,2506.6,2506.2,6.745]
[1748146821453,1.41061538,2506.8,2506.2,6.745]
[1748146822153,1.41061538,2506.8,2506.3,0.8031]
[1748146822591,0.37013966,2506.7,2506.3,0.8031]
[1748146823288,0.7791,2506.8,2506.3,0.8031]
[1748146823487,0.7791,2506.8,2506.1,7.147]
[1748146824488,1.06520639,2506.8,2506.1,7.147]
[1748146824702,0.37007891,2506.7,2506.1,7.147]
[1748146825384,1.06520639,2506.8,2506.1,7.147]
[1748146827003,0.37005237,2506.7,2506.1,7.147]
[1748146827708,0.37005237,2506.7,2506.2,21.074]
[1748146827885,1.06520639,2506.8,2506.2,21.074]
[1748146830006,0.37000383,2506.7,2506.2,21.074]
[1748146830308,2.11731124,2506.7,2505.9,0.7761]
[1748146830477,0.7898,2506.6,2505.9,0.7761]
[1748146830677,0.7898,2506.6,2506.0,6.368]
[1748146830989,1.82045736,2506.5,2506.1,6.368]
[1748146831184,0.26102574,2506.4,2506.2,6.368]
[1748146831591,0.37000383,2506.5,2506.2,6.368]
[1748146832005,0.37000383,2506.4,2506.2,6.368]
[1748146832681,0.7898,2506.6,2506.2,6.368]
[1748146833414,1.40057714,2506.5,2506.3,6.368]
[1748146833710,1.77061879,2506.5,2506.3,6.368]
[1748146833911,0.25604188,2506.4,2506.3,6.368]
[1748146834902,0.62608353,2506.4,2506.3,6.368]
[1748146835578,0.37004165,2506.4,2506.3,6.368]
[1748146836784,0.37004165,2506.6,2506.3,6.368]
[1748146837590,0.37004165,2506.8,2506.4,21.066]
[1748146838691,0.37004165,2506.7,2506.4,21.066]
[1748146838919,0.37004165,2506.7,2506.4,0.7761]
[1748146839915,0.7898,2507.0,2506.4,0.7761]
[1748146840116,2.11801245,2507.0,2506.4,0.7761]
[1748146841025,0.37019885,2506.9,2506.4,0.7761]
[1748146841910,2.11801245,2507.0,2506.4,0.7761]
[1748146843624,0.37011456,2506.9,2506.4,0.7761]
[1748146844403,0.37011456,2506.8,2506.4,0.7761]
[1748146845133,2.11801245,2507.0,2506.4,0.7761]
[1748146845800,0.37020042,2506.9,2506.4,0.7761]
[1748146846941,0.42006847,2506.8,2506.4,0.7761]
[1748146847105,0.37020042,2506.8,2506.4,0.7761]
[1748146847622,0.37020042,2506.8,2506.5,26.794]
[1748146847791,2.74952783,2507.0,2506.5,26.794]
[1748146847991,0.41970812,2506.9,2506.5,26.794]
[1748146849850,0.37016625,2506.8,2506.5,26.794]
[1748146850051,0.37016625,2506.8,2506.5,6.735]
[1748146850750,0.37016625,2506.8,2506.6,6.368]
[1748146851063,2.74952783,2507.0,2506.6,6.368]
[1748146851233,0.41472129,2506.9,2506.6,6.368]
[1748146852157,0.63151538,2507.1,2506.6,6.368]
[1748146852317,0.63151538,2507.1,2506.7,0.8212]
[1748146853230,1.39261538,2507.3,2506.7,0.8212]
[1748146853934,0.37003542,2507.2,2506.7,0.8212]
[1748146855050,0.37003542,2507.1,2506.7,0.8212]
[1748146856454,0.63151538,2507.4,2506.7,0.8212]
[1748146856655,1.15510543,2507.4,2506.7,0.8212]
[1748146857363,0.36987714,2507.3,2506.7,0.8212]
[1748146857560,0.36987714,2507.3,2506.8,21.062]
[1748146858423,1.15510543,2507.4,2506.8,21.062]
[1748146858424,0.36987714,2507.2,2506.8,21.062]
[1748146858964,1.15510543,2507.4,2506.8,21.062]
[1748146859137,0.33694905,2507.3,2506.8,21.062]
[1748146859864,0.33694905,2507.3,2506.8,6.735]
[1748146860065,0.33694905,2507.3,2506.7,0.8212]
[1748146860243,1.39768511,2507.1,2506.0,0.8168]
[1748146860437,0.04986869,2507.0,2506.1,6.367]
[1748146860648,0.7597,2506.9,2506.1,6.367]
[1748146861027,0.7597,2506.9,2506.0,0.8168]
[1748146861363,0.7597,2506.9,2506.1,6.367]
[1748146861364,0.04987067,2506.8,2506.1,6.367]
[1748146861669,0.04987067,2506.8,2506.0,0.8168]